fUST/lending_fUST_20240823
["ID","MTS","AMOUNT","RATE_DAILY","PERIOD"]
[335640070,1724397064114,-600.43,0.00017232,2]
[335640071,1724397064123,-543.23,0.00017232,2]
[335640072,1724397064133,-500.0,0.00017232,2]
[335640073,1724397064143,-500.0,0.00017232,2]
[335640074,1724397064153,-500.0,0.00017232,2]
[335640075,1724397064163,-500.0,0.00017232,2]
[335640076,1724397064172,-500.0,0.00017232,2]
[335640077,1724397064183,-621.27,0.00017232,2]
[335640078,1724397064193,-500.0,0.00017232,2]
[335640079,1724397064203,-707.77,0.00017232,2]
[335640080,1724397064212,-500.0,0.00017232,2]
[335640081,1724397064223,-813.92,0.00017232,2]
[335640082,1724397064232,-500.0,0.00017232,2]
[335640083,1724397064242,-500.0,0.00017232,2]
[335640084,1724397064252,-742.69,0.00017232,2]
[335640085,1724397064262,-931.63,0.00017232,2]
[335640086,1724397064273,-500.0,0.00017232,2]
[335640087,1724397064283,-500.0,0.00017232,2]
[335640088,1724397064293,-500.0,0.00017232,2]
[335640089,1724397064302,-559.62,0.00017232,2]
[335640090,1724397064312,-851.11,0.00017232,2]
[335640091,1724397064323,-626.73,0.00017232,2]
[335640092,1724397064332,-580.01,0.00017232,2]
[335640093,1724397064344,-500.0,0.00017232,2]
[335640094,1724397064353,-1648.93,0.00017232,2]
[335640095,1724397064363,-911.62,0.00017232,2]
[335640096,1724397064373,-500.0,0.00017232,2]
[335640097,1724397064382,-500.0,0.00017232,2]
[335640098,1724397064392,-500.0,0.00017232,2]
[335640099,1724397064402,-500.0,0.00017232,2]
[335640100,1724397064412,-500.0,0.00017232,2]
[335640101,1724397064422,-916.87,0.00017232,2]
[335640102,1724397064433,-2597.14,0.00017232,2]
[335640103,1724397064443,-975.36,0.00017232,2]
[335640104,1724397064453,-2514.48,0.00017232,2]
[335640105,1724397064464,-500.0,0.00017241,2]
[335640106,1724397064475,-500.0,0.00017241,2]
[335640107,1724397064485,-500.0,0.00017241,2]
[335640108,1724397064495,-500.0,0.00017241,2]
[335640109,1724397064505,-500.0,0.00017241,2]
[335640110,1724397064515,-500.0,0.00017241,2]
[335640111,1724397064524,-500.0,0.00017241,2]
[335640112,1724397064534,-500.0,0.00017241,2]
[335640113,1724397064544,-500.0,0.00017241,2]
[335640114,1724397064554,-500.0,0.00017241,2]
[335640115,1724397064565,-500.0,0.00017241,2]
[335640116,1724397064576,-500.0,0.00017241,2]
[335640117,1724397064586,-500.0,0.00017241,2]
[335640118,1724397064607,-498.95215855,0.00017241,2]
[335640119,1724397064617,-500.0,0.00017241,2]
[335640120,1724397064628,-100000.0,0.00017259,2]
[335640121,1724397064638,-5558.70873948,0.00017259,2]
[335640122,1724397064954,-66163.85595798,0.00017259,2]
[335640123,1724397064967,-10119.52586367,0.00017259,2]
[335640124,1724397064978,-355.56595316,0.00017259,2]
[335640125,1724397066715,621.06231277,0.0001211,2]
[335640126,1724397096007,326.98041619,0.00015,2]
[335640127,1724397096027,696.89288866,0.00015,2]
[335640128,1724397096050,87.65286446,0.00015,2]
[335640129,1724397105074,897.77353816,0.00015,2]
[335640131,1724397329894,163.26,0.00010959,2]
[335640132,1724397338004,277.25121167,0.000269,120]
[335640136,1724397450948,269.67595621,0.00014519,7]
[335640143,1724397552931,258.33917251,0.00025,120]
[335640150,1724397638370,260.98260539,0.00025,120]
[335640156,1724397904802,796.52,0.00027,120]
[335640158,1724397942121,-167.2054304,0.00012292,2]
[335640159,1724397942145,-646.79578337,0.00012551,2]
[335640164,1724398029137,-397.58661494,0.00012551,2]
[335640165,1724398029161,-4534.7602402,0.00012551,2]
[335640166,1724398029183,-4528.26939411,0.00012551,2]
[335640167,1724398029203,-155.00156571,0.00012991,2]
[335640168,1724398029224,-607.31695385,0.00013,2]
[335640169,1724398029247,-300.0,0.00013072,2]
[335640170,1724398029270,-11381.05422479,0.00013073,2]
[335640171,1724398032129,-230.59476359,0.00012551,2]
[335640173,1724398042111,-43.50052069,0.00012551,2]
[335640174,1724398042133,-108.12970235,0.00013073,2]
[335640176,1724398121026,1226.0456872,0.00025,120]
[335640177,1724398122559,182.95968917,0.00027,120]
[335640178,1724398122827,945.00777589,0.0001,120]
[335640179,1724398122905,329.29576613,0.00027,120]
[335640180,1724398147366,-154.87534708,0.00013051,2]
[335640181,1724398147391,-300.0,0.00013072,2]
[335640182,1724398147414,-13410.81607286,0.00013073,2]
[335640183,1724398147439,-933.67718814,0.00013333,2]
[335640184,1724398147463,-157.08247033,0.00013333,2]
[335640185,1724398147486,-404.39386824,0.00013333,2]
[335640186,1724398147516,-596.5204522,0.00013477,2]
[335640187,1724398147540,-834.77416019,0.00013496,2]
[335640188,1724398147567,-250.0,0.0001358,2]
[335640189,1724398147593,-250.0,0.00013617,2]
[335640190,1724398147619,-250.0,0.00013655,2]
[335640191,1724398147643,-250.0,0.00013692,2]
[335640192,1724398147666,-543.890254,0.00013699,2]
[335640193,1724398147689,-3000.0,0.00013699,2]
[335640194,1724398147714,-250.0,0.00013729,2]
[335640195,1724398147739,-250.0,0.00013766,2]
[335640196,1724398147765,-301.66413705,0.00013792,2]
[335640197,1724398147790,-250.0,0.00013804,2]
[335640198,1724398147813,-250.0,0.00013841,2]
[335640199,1724398147837,-1449.1914776,0.00013841,2]
[335640200,1724398147860,-250.0,0.00013878,2]
[335640201,1724398147883,-250.0,0.00013915,2]
[335640202,1724398147909,-250.0,0.00013953,2]
[335640203,1724398147932,-9032.28786821,0.00013971,2]
[335640204,1724398147956,-250.0,0.0001399,2]
[335640205,1724398147979,-250.0,0.00014027,2]
[335640206,1724398148002,-250.0,0.00014064,2]
[335640207,1724398148027,-250.0,0.00014101,2]
[335640208,1724398148050,-250.0,0.00014139,2]
[335640209,1724398148073,-250.0,0.00014176,2]
[335640210,1724398148097,-250.0,0.00014213,2]
[335640211,1724398148123,-12628.35484892,0.00014245,2]
[335640212,1724398148152,-374.037551,0.00014247,2]
[335640213,1724398148177,-250.0,0.0001425,2]
[335640214,1724398148205,-250.0,0.00014288,2]
[335640215,1724398148229,-420.0,0.00014379,2]
[335640216,1724398148251,-155.21189234,0.00014519,2]
[335640217,1724398148276,-154.83520553,0.00014519,2]
[335640218,1724398148299,-166.52075201,0.00014519,2]
[335640219,1724398148324,-128.2551701,0.00014519,2]
[335640220,1724398149135,-116.22189186,0.00014519,2]
[335640221,1724398149157,-1011.75810814,0.00015,2]
[335640222,1724398155091,-853.11881371,0.00015,2]
[335640223,1724398155114,-1111.52616931,0.00015,2]
[335640224,1724398155389,-587.0,0.00015817,2]
[335640225,1724398155414,-3000.0,0.000159,2]
[335640226,1724398155436,-6847.42905655,0.000159,2]
[335640227,1724398155459,-500.0,0.00015989,2]
[335640228,1724398155481,-152.40547829,0.00015989,2]
[335640229,1724398155506,-500.0,0.00015989,2]
[335640230,1724398155528,-416.80256937,0.00015989,2]
[335640231,1724398155550,-500.0,0.00015989,2]
[335640232,1724398155570,-500.0,0.00015989,2]
[335640233,1724398155591,-500.0,0.00015989,2]
[335640234,1724398155613,-500.0,0.00015989,2]
[335640235,1724398155635,-500.0,0.00015989,2]
[335640236,1724398155657,-221.63099745,0.00015989,2]
[335640238,1724398161153,-237.06581108,0.00014519,2]
[335640239,1724398161178,-278.36900255,0.00015989,2]
[335640240,1724398161203,-500.0,0.00015989,2]
[335640241,1724398161230,-500.0,0.00015989,2]
[335640242,1724398161252,-500.0,0.00015989,2]
[335640243,1724398161273,-500.0,0.00015989,2]
[335640244,1724398161293,-500.0,0.00015989,2]
[335640245,1724398161316,-500.0,0.00015989,2]
[335640246,1724398161341,-500.0,0.00015989,2]
[335640247,1724398161364,-500.0,0.00015989,2]
[335640248,1724398161384,-500.0,0.00015989,2]
[335640249,1724398161407,-500.0,0.00015989,2]
[335640250,1724398161432,-575.66433467,0.00015989,2]
[335640251,1724398161454,-500.0,0.00015989,2]
[335640252,1724398161477,-500.0,0.00015989,2]
[335640253,1724398161500,-500.0,0.00015989,2]
[335640254,1724398161527,-500.0,0.00015989,2]
[335640255,1724398161551,-500.0,0.00015989,2]
[335640256,1724398161572,-500.0,0.00015989,2]
[335640257,1724398161596,-500.0,0.00015989,2]
[335640258,1724398161619,-500.0,0.00015989,2]
[335640259,1724398161641,-500.0,0.00015989,2]
[335640260,1724398161663,-500.0,0.00015989,2]
[335640261,1724398161685,-500.0,0.00015989,2]
[335640262,1724398161706,-500.0,0.00015989,2]
[335640263,1724398161728,-500.0,0.00015989,2]
[335640264,1724398161749,-500.0,0.00015989,2]
[335640265,1724398161771,-500.0,0.00015989,2]
[335640266,1724398161793,-172287.126503,0.0001599,2]
[335640267,1724398161813,-83966.19944369,0.00016,2]
[335640268,1724398161836,-248.09798413,0.00016,2]
[335640269,1724398161859,-150.112233,0.00016,2]
[335640270,1724398161886,-156.743798,0.00016,2]
[335640271,1724398161907,-150.112233,0.00016,2]
[335640272,1724398161931,-150.112233,0.00016,2]
[335640273,1724398161958,-6847.42905654,0.0001601,2]
[335640274,1724398161987,-150.112233,0.000161,2]
[335640275,1724398162011,-150.112233,0.000161,2]
[335640276,1724398162032,-150.112233,0.000161,2]
[335640277,1724398162053,-150.112233,0.000161,2]
[335640278,1724398162073,-150.112233,0.000161,2]
[335640279,1724398162094,-150.112233,0.000161,2]
[335640280,1724398162118,-6847.42905654,0.00016119,2]
[335640281,1724398162142,-150.112233,0.000162,2]
[335640282,1724398162166,-150.112233,0.000162,2]
[335640283,1724398162190,-150.112233,0.000162,2]
[335640284,1724398162217,-150.112233,0.000162,2]
[335640285,1724398162242,-150.112233,0.000162,2]
[335640286,1724398162263,-4350.03431261,0.00016229,2]
[335640287,1724398162775,-2497.39474393,0.00016229,2]
[335640288,1724398162797,-150.112233,0.000163,2]
[335640289,1724398162819,-150.112233,0.000163,2]
[335640290,1724398162842,-150.112233,0.000163,2]
[335640291,1724398162864,-150.112233,0.000163,2]
[335640292,1724398162886,-150.112233,0.000163,2]
[335640293,1724398162908,-150.112233,0.000163,2]
[335640294,1724398162930,-150.112233,0.000163,2]
[335640295,1724398162952,-2031.55576739,0.00016338,2]
[335640296,1724398162973,-6847.42905654,0.00016338,2]
[335640297,1724398162995,-150.112233,0.000164,2]
[335640298,1724398163018,-150.112233,0.000164,2]
[335640299,1724398163040,-150.112233,0.000164,2]
[335640300,1724398163061,-150.112233,0.000164,2]
[335640301,1724398163082,-500.0,0.00016427,2]
[335640302,1724398163102,-325.61969717,0.00016427,2]
[335640303,1724398163124,-463.90178162,0.00016427,2]
[335640304,1724398163146,-560.12105953,0.00016427,2]
[335640305,1724398163168,-500.0,0.00016427,2]
[335640306,1724398163190,-500.0,0.00016427,2]
[335640307,1724398163213,-500.0,0.00016427,2]
[335640308,1724398163235,-500.0,0.00016427,2]
[335640309,1724398163257,-500.0,0.00016427,2]
[335640310,1724398163278,-500.0,0.00016427,2]
[335640311,1724398163300,-500.0,0.00016427,2]
[335640312,1724398163321,-500.0,0.00016427,2]
[335640313,1724398163342,-454.77803859,0.00016427,2]
[335640314,1724398163363,-616.62184415,0.00016427,2]
[335640315,1724398163385,-616.62184415,0.00016427,2]
[335640316,1724398163406,-616.62184415,0.00016427,2]
[335640317,1724398163427,-616.62184415,0.00016427,2]
[335640318,1724398163448,-616.62184415,0.00016427,2]
[335640319,1724398163470,-616.62184415,0.00016427,2]
[335640320,1724398163492,-616.62184415,0.00016427,2]
[335640321,1724398163514,-616.62184415,0.00016427,2]
[335640322,1724398163537,-631.49331216,0.00016427,2]
[335640323,1724398163559,-631.49331216,0.00016427,2]
[335640324,1724398163582,-631.49331216,0.00016427,2]
[335640325,1724398163608,-631.49331216,0.00016427,2]
[335640326,1724398163630,-631.49331216,0.00016427,2]
[335640327,1724398163654,-723.05984242,0.00016427,2]
[335640328,1724398163678,-723.05984242,0.00016427,2]
[335640329,1724398163700,-723.05984242,0.00016427,2]
[335640330,1724398163724,-723.05984242,0.00016427,2]
[335640331,1724398163750,-21166.30809015,0.00016428,2]
[335640349,1724398226839,156.53903536,0.00014519,2]
[335640437,1724398232618,-3381.76076521,0.00016338,2]
[335640439,1724398232628,-500.92394103,0.00016427,2]
[335640441,1724398232637,-1528.65148852,0.00016428,2]
[335640444,1724398232649,-19625.08391643,0.00016428,2]
[335640446,1724398232661,-216110.6462599,0.00016428,2]
[335640448,1724398232671,-500.0,0.00016438,2]
[335640450,1724398232680,-500.0,0.00016438,2]
[335640452,1724398232690,-500.0,0.00016438,2]
[335640454,1724398232699,-500.0,0.00016438,2]
[335640456,1724398232709,-500.0,0.00016438,2]
[335640458,1724398232718,-500.0,0.00016438,2]
[335640460,1724398232727,-502.88060833,0.00016438,2]
[335640461,1724398232736,-500.0,0.00016438,2]
[335640464,1724398232747,-500.0,0.00016438,2]
[335640466,1724398232756,-505.99434274,0.00016438,2]
[335640468,1724398232769,-500.0,0.00016438,2]
[335640470,1724398232778,-500.0,0.00016438,2]
[335640472,1724398232788,-500.0,0.00016438,2]
[335640474,1724398232798,-500.0,0.00016438,2]
[335640476,1724398232808,-500.0,0.00016438,2]
[335640478,1724398232817,-500.0,0.00016438,2]
[335640480,1724398232827,-500.0,0.00016438,2]
[335640482,1724398232836,-623.34047263,0.00016438,2]
[335640484,1724398232845,-500.0,0.00016438,2]
[335640486,1724398232855,-500.0,0.00016438,2]
[335640488,1724398232864,-506.99417169,0.00016438,2]
[335640490,1724398232873,-500.0,0.00016438,2]
[335640492,1724398232883,-275.51961178,0.00016438,2]
[335640493,1724398232893,-500.0,0.00016438,2]
[335640495,1724398232902,-500.0,0.00016438,2]
[335640497,1724398232911,-500.0,0.00016438,2]
[335640499,1724398232921,-561.19303532,0.00016438,2]
[335640501,1724398232931,-500.0,0.00016438,2]
[335640503,1724398232940,-725.36,0.00016438,2]
[335640505,1724398232949,-500.0,0.00016438,2]
[335640507,1724398232959,-500.0,0.00016438,2]
[335640509,1724398232969,-500.0,0.00016438,2]
[335640511,1724398232979,-500.0,0.00016438,2]
[335640513,1724398232988,-500.0,0.00016438,2]
[335640515,1724398232998,-500.0,0.00016438,2]
[335640517,1724398233007,-500.0,0.00016438,2]
[335640519,1724398233017,-500.0,0.00016438,2]
[335640521,1724398233027,-500.0,0.00016438,2]
[335640523,1724398233036,-500.0,0.00016438,2]
[335640525,1724398233046,-500.0,0.00016438,2]
[335640527,1724398233055,-161.52212397,0.00016438,2]
[335640529,1724398233065,-500.0,0.00016438,2]
[335640531,1724398233074,-500.0,0.00016438,2]
[335640533,1724398233083,-500.0,0.00016438,2]
[335640535,1724398233094,-500.0,0.00016438,2]
[335640537,1724398233103,-500.0,0.00016438,2]
[335640538,1724398233112,-501.26779545,0.00016438,2]
[335640541,1724398233122,-577.55444353,0.00016438,2]
[335640543,1724398233131,-500.0,0.00016438,2]
[335640545,1724398233141,-500.0,0.00016438,2]
[335640547,1724398233154,-500.0,0.00016438,2]
[335640549,1724398233164,-500.0,0.00016438,2]
[335640551,1724398233173,-500.0,0.00016438,2]
[335640553,1724398233183,-500.0,0.00016438,2]
[335640555,1724398233192,-500.0,0.00016438,2]
[335640557,1724398233202,-594.98,0.00016438,2]
[335640559,1724398233213,-819.25,0.00016438,2]
[335640561,1724398233222,-500.0,0.00016438,2]
[335640563,1724398233233,-500.0,0.00016438,2]
[335640564,1724398233242,-500.0,0.00016438,2]
[335640566,1724398233251,-1005.17,0.00016438,2]
[335640569,1724398233262,-500.0,0.00016438,2]
[335640570,1724398233271,-503.21842567,0.00016438,2]
[335640573,1724398233280,-500.0,0.00016438,2]
[335640575,1724398233290,-500.0,0.00016438,2]
[335640577,1724398233299,-500.0,0.00016438,2]
[335640578,1724398233309,-500.0,0.00016438,2]
[335640580,1724398233318,-500.0,0.00016438,2]
[335640582,1724398233327,-500.0,0.00016438,2]
[335640585,1724398233339,-500.0,0.00016438,2]
[335640587,1724398233349,-503.52699208,0.00016438,2]
[335640589,1724398233358,-500.0,0.00016438,2]
[335640591,1724398233367,-500.0,0.00016438,2]
[335640593,1724398233378,-500.0,0.00016438,2]
[335640595,1724398233388,-500.0,0.00016438,2]
[335640597,1724398233397,-500.0,0.00016438,2]
[335640599,1724398233407,-503.02446234,0.00016438,2]
[335640601,1724398233416,-500.0,0.00016438,2]
[335640603,1724398233425,-1141.12,0.00016438,2]
[335640604,1724398233435,-500.0,0.00016438,2]
[335640605,1724398233444,-514.01610898,0.00016438,2]
[335640606,1724398233454,-500.0,0.00016438,2]
[335640607,1724398233464,-562.89,0.00016438,2]
[335640608,1724398233474,-501.06335091,0.00016438,2]
[335640609,1724398233484,-500.0,0.00016438,2]
[335640610,1724398233493,-500.0,0.00016438,2]
[335640611,1724398233503,-500.0,0.00016438,2]
[335640612,1724398233512,-248.55925299,0.00016438,2]
[335640613,1724398233522,-500.0,0.00016438,2]
[335640614,1724398233533,-150.0,0.00016438,2]
[335640615,1724398233543,-503.60588176,0.00016438,2]
[335640616,1724398233553,-500.0,0.00016438,2]
[335640617,1724398233564,-500.0,0.00016438,2]
[335640618,1724398233573,-500.0,0.00016438,2]
[335640619,1724398233583,-500.0,0.00016438,2]
[335640620,1724398233593,-500.0,0.00016438,2]
[335640621,1724398233603,-500.0,0.00016438,2]
[335640622,1724398233613,-500.0,0.00016438,2]
[335640623,1724398233623,-500.0,0.00016438,2]
[335640624,1724398233633,-829.81,0.00016438,2]
[335640625,1724398233642,-500.0,0.00016438,2]
[335640626,1724398233652,-500.0,0.00016438,2]
[335640627,1724398233662,-500.0,0.00016438,2]
[335640628,1724398233672,-221.19042262,0.00016438,2]
[335640629,1724398233682,-500.0,0.00016438,2]
[335640630,1724398233692,-500.0,0.00016438,2]
[335640631,1724398233701,-500.0,0.00016438,2]
[335640632,1724398233711,-614.08373796,0.00016438,2]
[335640633,1724398233721,-500.0,0.00016438,2]
[335640635,1724398233731,-500.0,0.00016438,2]
[335640637,1724398233741,-500.0,0.00016438,2]
[335640639,1724398233751,-500.0,0.00016438,2]
[335640641,1724398233760,-513.21377825,0.00016438,2]
[335640643,1724398233770,-500.0,0.00016438,2]
[335640645,1724398233780,-500.0,0.00016438,2]
[335640647,1724398233789,-500.0,0.00016438,2]
[335640649,1724398233799,-500.0,0.00016438,2]
[335640651,1724398233809,-500.0,0.00016438,2]
[335640653,1724398233819,-500.0,0.00016438,2]
[335640655,1724398233829,-500.0,0.00016438,2]
[335640658,1724398233840,-503.39115272,0.00016438,2]
[335640660,1724398233851,-500.0,0.00016438,2]
[335640662,1724398233861,-500.0,0.00016438,2]
[335640664,1724398233872,-432.8340952,0.00016438,2]
[335640666,1724398233883,-500.0,0.00016438,2]
[335640668,1724398233894,-500.0,0.00016438,2]
[335640670,1724398233903,-500.0,0.00016438,2]
[335640672,1724398233913,-159.1826021,0.00016438,2]
[335640674,1724398233923,-500.0,0.00016438,2]
[335640676,1724398233933,-500.0,0.00016438,2]
[335640678,1724398233942,-500.0,0.00016438,2]
[335640680,1724398233952,-200.0,0.00016438,2]
[335640682,1724398233961,-500.0,0.00016438,2]
[335640684,1724398233972,-738.27,0.00016438,2]
[335640686,1724398233983,-500.0,0.00016438,2]
[335640688,1724398233992,-618.26,0.00016438,2]
[335640690,1724398234002,-500.0,0.00016438,2]
[335640692,1724398234012,-503.04441673,0.00016438,2]
[335640694,1724398234023,-500.0,0.00016438,2]
[335640696,1724398234033,-500.0,0.00016438,2]
[335640698,1724398234042,-500.0,0.00016438,2]
[335640700,1724398234052,-502.7981147,0.00016438,2]
[335640702,1724398234061,-1075.78,0.00016438,2]
[335640704,1724398234072,-177.89942305,0.00016438,2]
[335640706,1724398234082,-500.0,0.00016438,2]
[335640709,1724398234092,-500.0,0.00016438,2]
[335640710,1724398234101,-500.0,0.00016438,2]
[335640712,1724398234111,-515.25017103,0.00016438,2]
[335640715,1724398234121,-500.0,0.00016438,2]
[335640717,1724398234130,-464.25863069,0.00016438,2]
[335640719,1724398234140,-500.0,0.00016438,2]
[335640721,1724398234152,-500.0,0.00016438,2]
[335640723,1724398234162,-500.0,0.00016438,2]
[335640725,1724398234172,-794.11,0.00016438,2]
[335640727,1724398234181,-500.0,0.00016438,2]
[335640729,1724398234191,-500.0,0.00016438,2]
[335640731,1724398234200,-541.47,0.00016438,2]
[335640733,1724398234210,-500.0,0.00016438,2]
[335640735,1724398234219,-500.0,0.00016438,2]
[335640737,1724398234230,-267.6200345,0.00016438,2]
[335640739,1724398234239,-500.0,0.00016438,2]
[335640741,1724398234249,-500.0,0.00016438,2]
[335640743,1724398234258,-500.0,0.00016438,2]
[335640745,1724398234268,-500.0,0.00016438,2]
[335640747,1724398234278,-500.0,0.00016438,2]
[335640749,1724398234288,-159.70014743,0.00016438,2]
[335640751,1724398234297,-500.0,0.00016438,2]
[335640753,1724398234307,-577.3,0.00016438,2]
[335640755,1724398234318,-500.0,0.00016438,2]
[335640757,1724398234327,-500.0,0.00016438,2]
[335640759,1724398234337,-500.0,0.00016438,2]
[335640761,1724398234347,-500.0,0.00016438,2]
[335640763,1724398234356,-500.0,0.00016438,2]
[335640765,1724398234365,-500.0,0.00016438,2]
[335640767,1724398234375,-500.0,0.00016438,2]
[335640769,1724398234384,-500.0,0.00016438,2]
[335640771,1724398234394,-506.71813683,0.00016438,2]
[335640773,1724398234404,-500.0,0.00016438,2]
[335640775,1724398234413,-500.0,0.00016438,2]
[335640777,1724398234422,-500.0,0.00016438,2]
[335640779,1724398234433,-209.26463861,0.00016438,2]
[335640781,1724398234443,-500.0,0.00016438,2]
[335640783,1724398234452,-500.0,0.00016438,2]
[335640785,1724398234462,-606.94,0.00016438,2]
[335640787,1724398234471,-500.0,0.00016438,2]
[335640789,1724398234481,-500.0,0.00016438,2]
[335640792,1724398234491,-505.54176246,0.00016438,2]
[335640794,1724398234501,-838.47,0.00016438,2]
[335640796,1724398234511,-500.0,0.00016438,2]
[335640797,1724398234522,-500.0,0.00016438,2]
[335640799,1724398234531,-500.0,0.00016438,2]
[335640801,1724398234540,-508.49917195,0.00016438,2]
[335640803,1724398234550,-500.0,0.00016438,2]
[335640806,1724398234560,-541.04,0.00016438,2]
[335640808,1724398234570,-500.0,0.00016438,2]
[335640809,1724398234580,-500.0,0.00016438,2]
[335640812,1724398234590,-153.61001918,0.00016438,2]
[335640814,1724398234600,-500.0,0.00016438,2]
[335640816,1724398234609,-500.0,0.00016438,2]
[335640818,1724398234619,-583.63,0.00016438,2]
[335640820,1724398234630,-500.0,0.00016438,2]
[335640822,1724398234640,-506.69225657,0.00016438,2]
[335640823,1724398234650,-500.0,0.00016438,2]
[335640826,1724398234660,-957.87,0.00016438,2]
[335640828,1724398234670,-500.0,0.00016438,2]
[335640830,1724398234680,-500.0,0.00016438,2]
[335640832,1724398234690,-1011.34,0.00016438,2]
[335640834,1724398234699,-500.0,0.00016438,2]
[335640836,1724398234708,-500.0,0.00016438,2]
[335640838,1724398234718,-500.0,0.00016438,2]
[335640840,1724398234728,-460.46788103,0.00016438,2]
[335640842,1724398234737,-530.27,0.00016438,2]
[335640844,1724398234747,-687.63,0.00016438,2]
[335640846,1724398234757,-500.0,0.00016438,2]
[335640848,1724398234767,-500.0,0.00016438,2]
[335640850,1724398234777,-500.0,0.00016438,2]
[335640852,1724398234787,-617.00031905,0.00016438,2]
[335640854,1724398234797,-500.0,0.00016438,2]
[335640856,1724398234806,-500.0,0.00016438,2]
[335640858,1724398234816,-500.0,0.00016438,2]
[335640860,1724398234826,-500.0,0.00016438,2]
[335640862,1724398234836,-568.86,0.00016438,2]
[335640864,1724398234846,-500.0,0.00016438,2]
[335640866,1724398234856,-531.19,0.00016438,2]
[335640868,1724398234865,-531.19,0.00016438,2]
[335640870,1724398234876,-568.04982077,0.00016438,2]
[335640872,1724398234885,-531.19,0.00016438,2]
[335640874,1724398234897,-531.19,0.00016438,2]
[335640876,1724398234906,-531.19,0.00016438,2]
[335640878,1724398234916,-531.19,0.00016438,2]
[335640880,1724398234926,-531.19,0.00016438,2]
[335640882,1724398234936,-500.0,0.00016438,2]
[335640884,1724398234946,-531.19,0.00016438,2]
[335640886,1724398234955,-525.17762807,0.00016438,2]
[335640888,1724398234965,-531.19,0.00016438,2]
[335640890,1724398234975,-500.0,0.00016438,2]
[335640893,1724398234985,-500.0,0.00016438,2]
[335640895,1724398234996,-531.19,0.00016438,2]
[335640897,1724398235005,-500.0,0.00016438,2]
[335640899,1724398235015,-531.19,0.00016438,2]
[335640901,1724398235025,-500.0,0.00016438,2]
[335640903,1724398235035,-531.19,0.00016438,2]
[335640905,1724398235045,-425.0550627,0.00016438,2]
[335640907,1724398235055,-531.19,0.00016438,2]
[335640909,1724398235065,-531.19,0.00016438,2]
[335640911,1724398235075,-531.19,0.00016438,2]
[335640913,1724398235085,-822.04,0.00016438,2]
[335640915,1724398235095,-500.0,0.00016438,2]
[335640917,1724398235104,-500.0,0.00016438,2]
[335640919,1724398235114,-500.0,0.00016438,2]
[335640921,1724398235123,-658.88,0.00016438,2]
[335640923,1724398235133,-500.0,0.00016438,2]
[335640925,1724398235143,-500.0,0.00016438,2]
[335640927,1724398235155,-501.58574869,0.00016438,2]
[335640929,1724398235165,-500.0,0.00016438,2]
[335640931,1724398235175,-500.0,0.00016438,2]
[335640933,1724398235185,-500.0,0.00016438,2]
[335640955,1724398235378,-500.0,0.00016438,2]
[335640957,1724398235391,-500.0,0.00016438,2]
[335640959,1724398235401,-500.0,0.00016438,2]
[335640961,1724398235412,-500.0,0.00016438,2]